[Event "Live Chess"]
[Site "Chess.com"]
[Date "2010.12.14"]
[Round "-"]
[White "hipposcottimus"]
[Black "Raja27Dev"]
[Result "1-0"]
[CurrentPosition "r1bqkb1r/1p2pQpp/4P3/p1pPN3/3n4/2N5/PP3PPP/R1B2RK1 b - -"]
[Timezone "UTC"]
[ECO "D00"]
[ECOUrl "https://www.chess.com/openings/Queens-Pawn-Opening-1...d5-2.e3"]
[UTCDate "2010.12.14"]
[UTCTime "11:06:59"]
[WhiteElo "1615"]
[BlackElo "1414"]
[TimeControl "60"]
[Termination "hipposcottimus won by checkmate"]
[StartTime "11:06:59"]
[EndDate "2010.12.14"]
[EndTime "11:07:47"]
[Link "https://www.chess.com/game/live/77175015"]

1. e3 {[%clk 0:01:00]} 1... d5 {[%clk 0:01:00]} 2. d4 {[%clk 0:00:58.7]} 2... Nc6 {[%clk 0:01:00]} 3. c4 {[%clk 0:00:55.9]} 3... dxc4 {[%clk 0:00:58.6]} 4. Bxc4 {[%clk 0:00:54.9]} 4... Nb4 {[%clk 0:00:58]} 5. Bxf7+ {[%clk 0:00:54.5]} 5... Kxf7 {[%clk 0:00:56.1]} 6. Qb3+ {[%clk 0:00:54.2]} 6... Be6 {[%clk 0:00:53.1]} 7. Qxb4 {[%clk 0:00:52]} 7... a5 {[%clk 0:00:52.1]} 8. Qd2 {[%clk 0:00:51.7]} 8... Bf5 {[%clk 0:00:50.7]} 9. Nc3 {[%clk 0:00:51.5]} 9... c6 {[%clk 0:00:47.7]} 10. e4 {[%clk 0:00:51.1]} 10... Bg4 {[%clk 0:00:46.3]} 11. Nf3 {[%clk 0:00:50.4]} 11... Be6 {[%clk 0:00:46.3]} 12. O-O {[%clk 0:00:49.1]} 12... c5 {[%clk 0:00:45.8]} 13. d5 {[%clk 0:00:48.1]} 13... Bc8 {[%clk 0:00:43.6]} 14. e5 {[%clk 0:00:47.6]} 14... Ke8 {[%clk 0:00:42.4]} 15. e6 {[%clk 0:00:47]} 15... Nh6 {[%clk 0:00:40.2]} 16. Ne5 {[%clk 0:00:46.5]} 16... Nf5 {[%clk 0:00:39]} 17. Qf4 {[%clk 0:00:45.9]} 17... Nd4 {[%clk 0:00:37.4]} 18. Qf7# {[%clk 0:00:43.9]} 1-0

[Event "Live Chess"]
[Site "Chess.com"]
[Date "2010.12.14"]
[Round "-"]
[White "Raja27Dev"]
[Black "hipposcottimus"]
[Result "0-1"]
[CurrentPosition "5rk1/5ppp/8/p7/P3B3/2p5/1q5r/2KR4 w - -"]
[Timezone "UTC"]
[ECO "C42"]
[ECOUrl "https://www.chess.com/openings/Petrovs-Defense-Classical-Stafford-Gambit"]
[UTCDate "2010.12.14"]
[UTCTime "11:05:17"]
[WhiteElo "1418"]
[BlackElo "1611"]
[TimeControl "60"]
[Termination "hipposcottimus won by checkmate"]
[StartTime "11:05:17"]
[EndDate "2010.12.14"]
[EndTime "11:06:44"]
[Link "https://www.chess.com/game/live/77174691"]

1. e4 {[%clk 0:01:00]} 1... e5 {[%clk 0:01:00]} 2. Nf3 {[%clk 0:01:00]} 2... Nc6 {[%clk 0:00:59.7]} 3. Nxe5 {[%clk 0:00:59.3]} 3... Nf6 {[%clk 0:00:59.4]} 4. Nxc6 {[%clk 0:00:58.2]} 4... dxc6 {[%clk 0:00:59.1]} 5. Qf3 {[%clk 0:00:56.5]} 5... Bg4 {[%clk 0:00:56.2]} 6. Bc4 {[%clk 0:00:56.5]} 6... Bxf3 {[%clk 0:00:55]} 7. gxf3 {[%clk 0:00:55.9]} 7... Be7 {[%clk 0:00:54]} 8. Nc3 {[%clk 0:00:53.4]} 8... O-O {[%clk 0:00:52]} 9. b4 {[%clk 0:00:52.7]} 9... b5 {[%clk 0:00:51.2]} 10. Bb3 {[%clk 0:00:51.5]} 10... Nd7 {[%clk 0:00:49.6]} 11. a4 {[%clk 0:00:51.5]} 11... c5 {[%clk 0:00:48.9]} 12. bxc5 {[%clk 0:00:50.5]} 12... b4 {[%clk 0:00:47.3]} 13. Nb5 {[%clk 0:00:49.3]} 13... Bxc5 {[%clk 0:00:45.9]} 14. d3 {[%clk 0:00:47.4]} 14... Bxf2+ {[%clk 0:00:45.2]} 15. Kxf2 {[%clk 0:00:46]} 15... Ne5 {[%clk 0:00:43.6]} 16. Bf4 {[%clk 0:00:46]} 16... Qf6 {[%clk 0:00:42.7]} 17. d4 {[%clk 0:00:44.3]} 17... Qxf4 {[%clk 0:00:40.8]} 18. dxe5 {[%clk 0:00:43]} 18... Qxe5 {[%clk 0:00:40.5]} 19. Nxc7 {[%clk 0:00:42.7]} 19... Qxc7 {[%clk 0:00:39]} 20. Rad1 {[%clk 0:00:41.3]} 20... Qc3 {[%clk 0:00:38.3]} 21. Rhg1 {[%clk 0:00:41.3]} 21... a5 {[%clk 0:00:36.4]} 22. Rd3 {[%clk 0:00:39]} 22... Qb2 {[%clk 0:00:35]} 23. Ke3 {[%clk 0:00:36.5]} 23... Qf6 {[%clk 0:00:34.6]} 24. f4 {[%clk 0:00:34.5]} 24... Qb6+ {[%clk 0:00:34.2]} 25. Rd4 {[%clk 0:00:31.2]} 25... Rad8 {[%clk 0:00:33.8]} 26. Kd2 {[%clk 0:00:29.3]} 26... Rxd4+ {[%clk 0:00:32]} 27. Kc1 {[%clk 0:00:28.4]} 27... Rxe4 {[%clk 0:00:31.4]} 28. Rd1 {[%clk 0:00:27.4]} 28... Rxf4 {[%clk 0:00:30.8]} 29. c3 {[%clk 0:00:26.8]} 29... Rf2 {[%clk 0:00:29.9]} 30. Bc2 {[%clk 0:00:25]} 30... Rxh2 {[%clk 0:00:28.9]} 31. Bd3 {[%clk 0:00:23.8]} 31... bxc3 {[%clk 0:00:27.7]} 32. Be4 {[%clk 0:00:22]} 32... Qb2# {[%clk 0:00:27.1]} 0-1

[Event "Live Chess"]
[Site "Chess.com"]
[Date "2010.12.14"]
[Round "-"]
[White "hipposcottimus"]
[Black "Raja27Dev"]
[Result "1-0"]
[CurrentPosition "8/p7/5N1p/6p1/1p6/3k2P1/PP5P/7K b - -"]
[Timezone "UTC"]
[ECO "C42"]
[ECOUrl "https://www.chess.com/openings/Petrovs-Defense-Urusov-Lichtenhein-Defense"]
[UTCDate "2010.12.14"]
[UTCTime "11:02:45"]
[WhiteElo "1607"]
[BlackElo "1422"]
[TimeControl "60"]
[Termination "hipposcottimus won on time"]
[StartTime "11:02:45"]
[EndDate "2010.12.14"]
[EndTime "11:05:03"]
[Link "https://www.chess.com/game/live/77174166"]

1. e4 {[%clk 0:01:00]} 1... e5 {[%clk 0:01:00]} 2. Nf3 {[%clk 0:00:59.7]} 2... Nf6 {[%clk 0:00:59.3]} 3. Bc4 {[%clk 0:00:59.4]} 3... Nxe4 {[%clk 0:00:58.4]} 4. Nxe5 {[%clk 0:00:59.1]} 4... Bc5 {[%clk 0:00:57.2]} 5. Nxf7 {[%clk 0:00:53]} 5... Qe7 {[%clk 0:00:54.9]} 6. O-O {[%clk 0:00:50.2]} 6... d5 {[%clk 0:00:52.7]} 7. Bxd5 {[%clk 0:00:47.9]} 7... c6 {[%clk 0:00:48.5]} 8. Bb3 {[%clk 0:00:46.6]} 8... Be6 {[%clk 0:00:43.5]} 9. Bxe6 {[%clk 0:00:39]} 9... Qxe6 {[%clk 0:00:40.8]} 10. d3 {[%clk 0:00:38.6]} 10... Qxf7 {[%clk 0:00:40]} 11. dxe4 {[%clk 0:00:37.9]} 11... Qf6 {[%clk 0:00:38.8]} 12. Re1 {[%clk 0:00:37.2]} 12... O-O {[%clk 0:00:36.6]} 13. Be3 {[%clk 0:00:35.2]} 13... Bxe3 {[%clk 0:00:33.8]} 14. fxe3 {[%clk 0:00:34.8]} 14... Nd7 {[%clk 0:00:32.9]} 15. Nc3 {[%clk 0:00:33.4]} 15... Nc5 {[%clk 0:00:32.3]} 16. e5 {[%clk 0:00:32.2]} 16... Qxe5 {[%clk 0:00:29.9]} 17. Rf1 {[%clk 0:00:31.1]} 17... Qxe3+ {[%clk 0:00:27.1]} 18. Kh1 {[%clk 0:00:29.4]} 18... Rxf1+ {[%clk 0:00:24.1]} 19. Qxf1 {[%clk 0:00:29.1]} 19... h6 {[%clk 0:00:22.2]} 20. Qc4+ {[%clk 0:00:28.1]} 20... Kh7 {[%clk 0:00:20.1]} 21. Rf1 {[%clk 0:00:23.2]} 21... Qd2 {[%clk 0:00:17.4]} 22. Qf4 {[%clk 0:00:20]} 22... Qxc2 {[%clk 0:00:15.9]} 23. Qf5+ {[%clk 0:00:18.3]} 23... g6 {[%clk 0:00:14.3]} 24. Qxc2 {[%clk 0:00:16.6]} 24... b6 {[%clk 0:00:12.5]} 25. Rf7+ {[%clk 0:00:16.1]} 25... Kg8 {[%clk 0:00:10.3]} 26. Rc7 {[%clk 0:00:14.6]} 26... Ne4 {[%clk 0:00:10]} 27. Rxc6 {[%clk 0:00:13.4]} 27... Nf6 {[%clk 0:00:08.8]} 28. Rc7 {[%clk 0:00:11.9]} 28... Ne4 {[%clk 0:00:07.6]} 29. Rc4 {[%clk 0:00:10.5]} 29... Nf2+ {[%clk 0:00:07.6]} 30. Qxf2 {[%clk 0:00:09]} 30... Rf8 {[%clk 0:00:07]} 31. Qxf8+ {[%clk 0:00:07.8]} 31... Kxf8 {[%clk 0:00:05.9]} 32. Rf4+ {[%clk 0:00:06.9]} 32... Ke7 {[%clk 0:00:05.9]} 33. Rc4 {[%clk 0:00:06.6]} 33... Kd6 {[%clk 0:00:05.9]} 34. Rd4+ {[%clk 0:00:05.4]} 34... Kc5 {[%clk 0:00:05]} 35. Rg4 {[%clk 0:00:03.1]} 35... b5 {[%clk 0:00:03.7]} 36. Rg3 {[%clk 0:00:02.8]} 36... b4 {[%clk 0:00:03.7]} 37. Ne4+ {[%clk 0:00:02.2]} 37... Kd4 {[%clk 0:00:02.8]} 38. Nf6 {[%clk 0:00:01.9]} 38... g5 {[%clk 0:00:01.6]} 39. Rd3+ {[%clk 0:00:01.6]} 39... Kxd3 {[%clk 0:00:00.5]} 40. g3 {[%clk 0:00:01.4]} 1-0

[Event "Live Chess"]
[Site "Chess.com"]
[Date "2010.12.14"]
[Round "-"]
[White "Raja27Dev"]
[Black "hipposcottimus"]
[Result "0-1"]
[CurrentPosition "4r1k1/5ppp/1p3n2/8/8/3N1P2/2r1q2P/1R2K2R w K -"]
[Timezone "UTC"]
[ECO "C55"]
[ECOUrl "https://www.chess.com/openings/Italian-Game-Two-Knights-Modern-Bishops-Opening-4...d5-5.exd5"]
[UTCDate "2010.12.14"]
[UTCTime "11:00:52"]
[WhiteElo "1426"]
[BlackElo "1603"]
[TimeControl "60"]
[Termination "hipposcottimus won by checkmate"]
[StartTime "11:00:52"]
[EndDate "2010.12.14"]
[EndTime "11:02:26"]
[Link "https://www.chess.com/game/live/77173808"]

1. e4 {[%clk 0:01:00]} 1... e5 {[%clk 0:01:00]} 2. Nf3 {[%clk 0:01:00]} 2... Nc6 {[%clk 0:00:59.1]} 3. Bc4 {[%clk 0:00:58.5]} 3... Nf6 {[%clk 0:00:58.5]} 4. d3 {[%clk 0:00:57.6]} 4... d5 {[%clk 0:00:58]} 5. exd5 {[%clk 0:00:56.6]} 5... Na5 {[%clk 0:00:57.3]} 6. Ng5 {[%clk 0:00:52.8]} 6... Nxc4 {[%clk 0:00:55]} 7. dxc4 {[%clk 0:00:52.1]} 7... e4 {[%clk 0:00:53.4]} 8. d6 {[%clk 0:00:51.2]} 8... Bxd6 {[%clk 0:00:52.4]} 9. Bd2 {[%clk 0:00:50.4]} 9... O-O {[%clk 0:00:51.9]} 10. Nc3 {[%clk 0:00:49]} 10... Bg4 {[%clk 0:00:48.6]} 11. f3 {[%clk 0:00:47]} 11... exf3 {[%clk 0:00:47.9]} 12. gxf3 {[%clk 0:00:45.1]} 12... Bh5 {[%clk 0:00:47.6]} 13. Nh3 {[%clk 0:00:43]} 13... Re8+ {[%clk 0:00:46.5]} 14. Ne2 {[%clk 0:00:40.4]} 14... Bg6 {[%clk 0:00:44.7]} 15. b4 {[%clk 0:00:37.2]} 15... Qe7 {[%clk 0:00:43.9]} 16. c5 {[%clk 0:00:36.4]} 16... Be5 {[%clk 0:00:43.1]} 17. Rb1 {[%clk 0:00:32.6]} 17... b6 {[%clk 0:00:41]} 18. cxb6 {[%clk 0:00:30.7]} 18... cxb6 {[%clk 0:00:39.9]} 19. b5 {[%clk 0:00:29.8]} 19... a6 {[%clk 0:00:38.6]} 20. Bb4 {[%clk 0:00:28.6]} 20... Qe6 {[%clk 0:00:34.3]} 21. bxa6 {[%clk 0:00:27]} 21... Rxa6 {[%clk 0:00:32.8]} 22. Bd6 {[%clk 0:00:23]} 22... Rxa2 {[%clk 0:00:31.2]} 23. Bxe5 {[%clk 0:00:21.6]} 23... Qxe5 {[%clk 0:00:29.4]} 24. Nf2 {[%clk 0:00:18]} 24... Bxc2 {[%clk 0:00:27.6]} 25. Qxc2 {[%clk 0:00:15.9]} 25... Rxc2 {[%clk 0:00:26.2]} 26. Nd3 {[%clk 0:00:15]} 26... Qxe2# {[%clk 0:00:24.7]} 0-1

[Event "Live Chess"]
[Site "Chess.com"]
[Date "2010.12.14"]
[Round "-"]
[White "hipposcottimus"]
[Black "Raja27Dev"]
[Result "0-1"]
[CurrentPosition "5rk1/2r1pp1p/2R3p1/1B1q4/P7/4Bb2/5RPP/3Q1K2 w - -"]
[Timezone "UTC"]
[ECO "B01"]
[ECOUrl "https://www.chess.com/openings/Scandinavian-Defense-2.exd5"]
[UTCDate "2010.12.14"]
[UTCTime "10:58:38"]
[WhiteElo "1599"]
[BlackElo "1430"]
[TimeControl "60"]
[Termination "Raja27Dev won on time"]
[StartTime "10:58:38"]
[EndDate "2010.12.14"]
[EndTime "11:00:40"]
[Link "https://www.chess.com/game/live/77173308"]

1. e4 {[%clk 0:01:00]} 1... d5 {[%clk 0:01:00]} 2. exd5 {[%clk 0:00:58.3]} 2... Nc6 {[%clk 0:01:00]} 3. dxc6 {[%clk 0:00:56.9]} 3... bxc6 {[%clk 0:00:59.4]} 4. Nc3 {[%clk 0:00:56.1]} 4... Bf5 {[%clk 0:00:59.4]} 5. d3 {[%clk 0:00:54.5]} 5... Nf6 {[%clk 0:00:59.1]} 6. Nf3 {[%clk 0:00:52.7]} 6... Nd5 {[%clk 0:00:59.1]} 7. Be2 {[%clk 0:00:52.2]} 7... Nxc3 {[%clk 0:00:57.9]} 8. bxc3 {[%clk 0:00:52]} 8... g6 {[%clk 0:00:57.9]} 9. O-O {[%clk 0:00:48.3]} 9... Bg7 {[%clk 0:00:57.5]} 10. d4 {[%clk 0:00:45.5]} 10... c5 {[%clk 0:00:56.2]} 11. Be3 {[%clk 0:00:41.9]} 11... cxd4 {[%clk 0:00:55.2]} 12. cxd4 {[%clk 0:00:41.6]} 12... c5 {[%clk 0:00:53.6]} 13. c3 {[%clk 0:00:40.8]} 13... cxd4 {[%clk 0:00:52.4]} 14. cxd4 {[%clk 0:00:40.1]} 14... Qa5 {[%clk 0:00:50.8]} 15. Bd2 {[%clk 0:00:36]} 15... Qa3 {[%clk 0:00:47.2]} 16. Bc1 {[%clk 0:00:34]} 16... Qc3 {[%clk 0:00:43.7]} 17. Bd2 {[%clk 0:00:32.7]} 17... Qc6 {[%clk 0:00:36.9]} 18. Rb1 {[%clk 0:00:29.8]} 18... O-O {[%clk 0:00:34.9]} 19. Bb5 {[%clk 0:00:28.5]} 19... Qd5 {[%clk 0:00:32.7]} 20. a4 {[%clk 0:00:28]} 20... a6 {[%clk 0:00:31]} 21. Be2 {[%clk 0:00:22.4]} 21... Rac8 {[%clk 0:00:27.7]} 22. Rb6 {[%clk 0:00:19.7]} 22... Bxd4 {[%clk 0:00:22.4]} 23. Rxa6 {[%clk 0:00:17.3]} 23... Bxf2+ {[%clk 0:00:21]} 24. Rxf2 {[%clk 0:00:16]} 24... Qc5 {[%clk 0:00:19.2]} 25. Kf1 {[%clk 0:00:09.6]} 25... Rc7 {[%clk 0:00:16.9]} 26. Bb5 {[%clk 0:00:03.5]} 26... Bg4 {[%clk 0:00:15.6]} 27. Rc6 {[%clk 0:00:02.7]} 27... Qd5 {[%clk 0:00:13.6]} 28. Be3 {[%clk 0:00:00.4]} 28... Bxf3 {[%clk 0:00:12.5]} 0-1

[Event "Live Chess"]
[Site "Chess.com"]
[Date "2010.12.14"]
[Round "-"]
[White "Raja27Dev"]
[Black "hipposcottimus"]
[Result "0-1"]
[CurrentPosition "6Q1/8/2P5/8/1K4R1/1P2kp2/P6P/2q5 w - -"]
[Timezone "UTC"]
[ECO "C55"]
[ECOUrl "https://www.chess.com/openings/Italian-Game-Two-Knights-Modern-Bishops-Opening-4...d5-5.exd5-Nxd5"]
[UTCDate "2010.12.14"]
[UTCTime "10:55:52"]
[WhiteElo "1417"]
[BlackElo "1610"]
[TimeControl "60"]
[Termination "hipposcottimus won on time"]
[StartTime "10:55:52"]
[EndDate "2010.12.14"]
[EndTime "10:58:03"]
[Link "https://www.chess.com/game/live/77172787"]

1. e4 {[%clk 0:01:00]} 1... e5 {[%clk 0:01:00]} 2. Nf3 {[%clk 0:01:00]} 2... Nc6 {[%clk 0:00:59.7]} 3. Bc4 {[%clk 0:00:58.2]} 3... Nf6 {[%clk 0:00:59.4]} 4. d3 {[%clk 0:00:57.7]} 4... d5 {[%clk 0:00:58.9]} 5. exd5 {[%clk 0:00:55.9]} 5... Nxd5 {[%clk 0:00:58.7]} 6. Bxd5 {[%clk 0:00:55.9]} 6... Qxd5 {[%clk 0:00:58.3]} 7. Ng5 {[%clk 0:00:54.7]} 7... Bc5 {[%clk 0:00:55.6]} 8. Qf3 {[%clk 0:00:51.7]} 8... e4 {[%clk 0:00:51.1]} 9. dxe4 {[%clk 0:00:50.2]} 9... Bb4+ {[%clk 0:00:46.2]} 10. c3 {[%clk 0:00:46.2]} 10... Nd4 {[%clk 0:00:44.5]} 11. exd5 {[%clk 0:00:41.5]} 11... Nxf3+ {[%clk 0:00:43.4]} 12. gxf3 {[%clk 0:00:38.9]} 12... Be7 {[%clk 0:00:42.8]} 13. Ne4 {[%clk 0:00:37.3]} 13... O-O {[%clk 0:00:42.4]} 14. Bf4 {[%clk 0:00:36.2]} 14... f5 {[%clk 0:00:41.7]} 15. Ned2 {[%clk 0:00:33]} 15... Re8 {[%clk 0:00:41.4]} 16. Bxc7 {[%clk 0:00:31.9]} 16... Bd6+ {[%clk 0:00:40]} 17. Kd1 {[%clk 0:00:31.9]} 17... Bxc7 {[%clk 0:00:39.2]} 18. Nb3 {[%clk 0:00:28.7]} 18... Bd7 {[%clk 0:00:36.7]} 19. Nc5 {[%clk 0:00:28.7]} 19... Bb5 {[%clk 0:00:33.7]} 20. Nxb7 {[%clk 0:00:27.1]} 20... Rab8 {[%clk 0:00:32]} 21. Nc5 {[%clk 0:00:22.9]} 21... Bb6 {[%clk 0:00:31.6]} 22. Nd7 {[%clk 0:00:21.9]} 22... Rb7 {[%clk 0:00:30.1]} 23. Nxb6 {[%clk 0:00:20.7]} 23... Rxb6 {[%clk 0:00:29.8]} 24. Nd2 {[%clk 0:00:20]} 24... Bd3 {[%clk 0:00:28.3]} 25. Kc1 {[%clk 0:00:18.2]} 25... Bc4 {[%clk 0:00:26.7]} 26. b3 {[%clk 0:00:16.9]} 26... Ba6 {[%clk 0:00:25.3]} 27. c4 {[%clk 0:00:16]} 27... Bb7 {[%clk 0:00:25]} 28. Ne4 {[%clk 0:00:15.3]} 28... Rf6 {[%clk 0:00:24.6]} 29. Nxf6+ {[%clk 0:00:14.1]} 29... gxf6 {[%clk 0:00:24.3]} 30. f4 {[%clk 0:00:13.5]} 30... Kf7 {[%clk 0:00:23.9]} 31. Kb2 {[%clk 0:00:13.1]} 31... Kg6 {[%clk 0:00:23.5]} 32. Ka3 {[%clk 0:00:13.1]} 32... Kh5 {[%clk 0:00:23.1]} 33. Rhe1 {[%clk 0:00:12.7]} 33... Kg4 {[%clk 0:00:22.6]} 34. Rxe8 {[%clk 0:00:11.7]} 34... Kxf4 {[%clk 0:00:22.2]} 35. Rh8 {[%clk 0:00:11.6]} 35... Kf3 {[%clk 0:00:21.7]} 36. Rxh7 {[%clk 0:00:11.6]} 36... Kxf2 {[%clk 0:00:21.4]} 37. Rxb7 {[%clk 0:00:11.6]} 37... f4 {[%clk 0:00:20.8]} 38. Rxa7 {[%clk 0:00:11.6]} 38... f3 {[%clk 0:00:20.5]} 39. d6 {[%clk 0:00:11.6]} 39... Kg2 {[%clk 0:00:20.2]} 40. d7 {[%clk 0:00:11.6]} 40... f2 {[%clk 0:00:19.9]} 41. d8=Q {[%clk 0:00:11.6]} 41... f1=Q {[%clk 0:00:18.9]} 42. c5 {[%clk 0:00:11]} 42... Qxa1 {[%clk 0:00:17.5]} 43. c6 {[%clk 0:00:11]} 43... Qc1+ {[%clk 0:00:16.5]} 44. Kb4 {[%clk 0:00:04.6]} 44... f5 {[%clk 0:00:16]} 45. Qh8 {[%clk 0:00:02.8]} 45... f4 {[%clk 0:00:15]} 46. Qg8+ {[%clk 0:00:02.8]} 46... Kf3 {[%clk 0:00:13.6]} 47. Rg7 {[%clk 0:00:01.6]} 47... Ke3 {[%clk 0:00:12.9]} 48. Rg4 {[%clk 0:00:01.1]} 48... f3 {[%clk 0:00:12.4]} 0-1

[Event "Live Chess"]
[Site "Chess.com"]
[Date "2010.12.14"]
[Round "-"]
[White "lantink"]
[Black "hipposcottimus"]
[Result "1-0"]
[CurrentPosition "8/8/8/1N6/1P6/1kPKBP2/3R4/8 b - -"]
[Timezone "UTC"]
[ECO "C20"]
[ECOUrl "https://www.chess.com/openings/Kings-Pawn-Opening-Napoleon-Attack"]
[UTCDate "2010.12.14"]
[UTCTime "10:52:22"]
[WhiteElo "1948"]
[BlackElo "1606"]
[TimeControl "60"]
[Termination "lantink won on time"]
[StartTime "10:52:22"]
[EndDate "2010.12.14"]
[EndTime "10:54:45"]
[Link "https://www.chess.com/game/live/77172054"]

1. e4 {[%clk 0:01:00]} 1... e5 {[%clk 0:01:00]} 2. Qf3 {[%clk 0:00:59.7]} 2... Nc6 {[%clk 0:00:59.7]} 3. d3 {[%clk 0:00:59.4]} 3... Nd4 {[%clk 0:00:58.2]} 4. Qd1 {[%clk 0:00:57.9]} 4... d6 {[%clk 0:00:57.9]} 5. c3 {[%clk 0:00:57.4]} 5... Nc6 {[%clk 0:00:56.2]} 6. Qf3 {[%clk 0:00:56.5]} 6... f5 {[%clk 0:00:55.8]} 7. h3 {[%clk 0:00:56.1]} 7... Nf6 {[%clk 0:00:54.2]} 8. exf5 {[%clk 0:00:55.2]} 8... Be7 {[%clk 0:00:52.7]} 9. g4 {[%clk 0:00:54]} 9... O-O {[%clk 0:00:52.4]} 10. Bd2 {[%clk 0:00:52.5]} 10... d5 {[%clk 0:00:50.7]} 11. Na3 {[%clk 0:00:51.6]} 11... e4 {[%clk 0:00:48.9]} 12. dxe4 {[%clk 0:00:50.4]} 12... dxe4 {[%clk 0:00:48.4]} 13. Qf4 {[%clk 0:00:49.1]} 13... Bd6 {[%clk 0:00:47.5]} 14. Qe3 {[%clk 0:00:48.2]} 14... Ne5 {[%clk 0:00:45.2]} 15. Nb5 {[%clk 0:00:46.2]} 15... c6 {[%clk 0:00:43.9]} 16. Nxd6 {[%clk 0:00:45.4]} 16... Qxd6 {[%clk 0:00:42.9]} 17. a4 {[%clk 0:00:44.8]} 17... b5 {[%clk 0:00:41.9]} 18. axb5 {[%clk 0:00:43.7]} 18... cxb5 {[%clk 0:00:41.6]} 19. Bxb5 {[%clk 0:00:42.9]} 19... Nc4 {[%clk 0:00:40.9]} 20. Bxc4+ {[%clk 0:00:42]} 20... Kh8 {[%clk 0:00:38.6]} 21. h4 {[%clk 0:00:40.3]} 21... Rb8 {[%clk 0:00:38.1]} 22. g5 {[%clk 0:00:39.7]} 22... Ng4 {[%clk 0:00:34.6]} 23. Qg3 {[%clk 0:00:37.3]} 23... Ne5 {[%clk 0:00:34.2]} 24. Bf4 {[%clk 0:00:35.3]} 24... Nd3+ {[%clk 0:00:29.3]} 25. Bxd3 {[%clk 0:00:33.5]} 25... Qxd3 {[%clk 0:00:29]} 26. Qxd3 {[%clk 0:00:31.7]} 26... exd3 {[%clk 0:00:27.5]} 27. Bxb8 {[%clk 0:00:31.3]} 27... Ba6 {[%clk 0:00:25.3]} 28. Bf4 {[%clk 0:00:29.2]} 28... Bb7 {[%clk 0:00:22.8]} 29. Kd2 {[%clk 0:00:28.3]} 29... Rd8 {[%clk 0:00:22.5]} 30. Rh2 {[%clk 0:00:27.4]} 30... Be4 {[%clk 0:00:20.5]} 31. Nh3 {[%clk 0:00:26.5]} 31... Bxf5 {[%clk 0:00:19.3]} 32. Rf1 {[%clk 0:00:25.5]} 32... h6 {[%clk 0:00:18.6]} 33. f3 {[%clk 0:00:24.6]} 33... Bg6 {[%clk 0:00:17.4]} 34. gxh6 {[%clk 0:00:23.6]} 34... gxh6 {[%clk 0:00:15.9]} 35. h5 {[%clk 0:00:23.1]} 35... Kh7 {[%clk 0:00:15.7]} 36. Be3 {[%clk 0:00:22.3]} 36... Bxh5 {[%clk 0:00:14.5]} 37. Nf4 {[%clk 0:00:20.4]} 37... Be8 {[%clk 0:00:14.1]} 38. Ne6 {[%clk 0:00:19.6]} 38... Rd6 {[%clk 0:00:12.7]} 39. Ng5+ {[%clk 0:00:18.5]} 39... Kg8 {[%clk 0:00:12.1]} 40. Ne4 {[%clk 0:00:17.8]} 40... Kf7 {[%clk 0:00:11.2]} 41. b4 {[%clk 0:00:17.2]} 41... Rd7 {[%clk 0:00:10]} 42. Rxh6 {[%clk 0:00:14.5]} 42... Ke7 {[%clk 0:00:09.7]} 43. Rh7+ {[%clk 0:00:13.9]} 43... Kd8 {[%clk 0:00:09.4]} 44. Rh5 {[%clk 0:00:13.1]} 44... Rc7 {[%clk 0:00:07.4]} 45. Rh4 {[%clk 0:00:12.3]} 45... Rb7 {[%clk 0:00:06.8]} 46. Rh6 {[%clk 0:00:11.5]} 46... Rb6 {[%clk 0:00:06.5]} 47. Rxb6 {[%clk 0:00:10.2]} 47... axb6 {[%clk 0:00:06.2]} 48. Nf6 {[%clk 0:00:09.6]} 48... Kc7 {[%clk 0:00:05.9]} 49. Nxe8+ {[%clk 0:00:08.9]} 49... Kc6 {[%clk 0:00:05.7]} 50. Nf6 {[%clk 0:00:08.4]} 50... Kb5 {[%clk 0:00:05.4]} 51. Ne4 {[%clk 0:00:07.9]} 51... Ka4 {[%clk 0:00:04.6]} 52. Kxd3 {[%clk 0:00:07.5]} 52... Kb3 {[%clk 0:00:04.2]} 53. Ra1 {[%clk 0:00:07.2]} 53... Kb2 {[%clk 0:00:03]} 54. Rd1 {[%clk 0:00:06.9]} 54... Ka3 {[%clk 0:00:01]} 55. Rd2 {[%clk 0:00:06.6]} 55... b5 {[%clk 0:00:00.7]} 56. Nd6 {[%clk 0:00:06]} 56... Kb3 {[%clk 0:00:00.3]} 57. Nxb5 {[%clk 0:00:05.2]} 1-0